bitfinex/quotes_ETHUSD_20241120
["timestamp","ask_amount","ask_price","bid_price","bid_amount"]
[1732133315285,3.27998,3048.8,3048.3,0.55]
[1732133315876,0.37285009,3049.6,3048.3,0.55]
[1732133315877,3.28018,3048.7,3048.3,0.55]
[1732133316220,3.28058,3048.3,3047.7,4.11309]
[1732133316367,3.28058,3048.3,3047.7,0.832]
[1732133316572,3.28073,3048.1,3047.7,0.832]
[1732133317177,3.2807,3048.2,3047.7,0.832]
[1732133317717,3.28073,3048.1,3047.7,0.832]
[1732133317926,6.56154,3048.1,3047.8,0.55]
[1732133318108,3.28008,3048.7,3047.4,0.406174]
[1732133318279,3.28116,3047.7,3047.4,0.406174]
[1732133318619,3.28138,3047.5,3047.2,0.782]
[1732133318826,3.28138,3047.5,3046.8,3.28209]
[1732133318827,3.28162,3047.3,3046.9,0.782]
[1732133319116,3.28162,3047.3,3046.9,1.110209]
[1732133319306,3.28138,3047.5,3046.9,4.392229]
[1732133319504,3.7185009,3048.5,3046.9,4.06402]
[1732133319685,3.28139,3047.5,3046.9,4.06402]
[1732133319896,0.03494436,3047.4,3046.9,4.06402]
[1732133320117,0.03494436,3047.4,3047.0,0.406402]
[1732133320322,0.03494436,3047.4,3047.1,0.55]
[1732133320522,3.28139,3047.5,3047.1,0.55]
[1732133320732,3.2812,3047.7,3047.3,0.55]
[1732133321221,0.03494778,3047.6,3047.3,0.55]
[1732133321626,0.03494778,3047.6,3047.1,3.83179]
[1732133321841,0.03494778,3047.6,3047.1,4.2788212]
[1732133321988,0.03494778,3047.6,3047.3,0.55]
[1732133322323,0.03494778,3047.6,3047.1,0.9970312]
[1732133322324,3.28089,3048.0,3047.6,0.782]
[1732133322526,3.28089,3048.0,3047.7,0.55]
[1732133322527,3.28087,3048.0,3047.7,0.55]
[1732133322697,0.03502119,3047.9,3047.7,0.55]
[1732133322901,6.5622,3047.8,3047.4,0.55]
[1732133323112,3.28116,3047.8,3047.4,0.55]
[1732133323298,0.03498564,3047.7,3047.4,0.55]
[1732133323691,3.28124,3047.7,3047.4,0.55]
[1732133323890,0.03496385,3047.6,3047.4,0.55]
[1732133324326,3.31623385,3047.6,3047.4,0.55]
[1732133324535,3.28127,3047.6,3047.4,0.55]
[1732133324731,0.03494205,3047.5,3047.4,0.55]
[1732133325895,3.31631205,3047.5,3047.1,0.55]
[1732133326205,3.28172,3047.2,3047.0,0.55]
[1732133326398,0.03484337,3047.1,3047.0,0.55]
[1732133326809,0.03484337,3047.1,3046.6,4.11193]
[1732133327013,0.03484337,3047.1,3046.7,0.411193]
[1732133327227,3.31668337,3047.1,3046.7,0.411193]
[1732133327784,0.03484337,3047.1,3046.7,0.411193]
[1732133328010,0.03484337,3047.1,3046.8,3.83212]
[1732133328231,3.28132,3047.6,3047.0,0.55]
[1732133328432,3.2817,3047.2,3047.1,0.55]
[1732133328593,3.31655599,3047.2,3047.1,0.55]
[1732133328796,3.28182,3047.1,3046.7,0.55]
[1732133328993,0.03481239,3047.0,3046.7,0.55]
[1732133329336,0.03481239,3047.0,3046.7,3.83223]
[1732133329505,0.03481239,3047.0,3046.9,0.55]
[1732133329708,3.2816,3047.3,3046.9,0.55]
[1732133329905,0.03481239,3047.0,3046.9,0.55]
[1732133330104,3.2816,3047.3,3046.9,0.55]
[1732133330301,0.03481239,3047.0,3046.9,0.55]
[1732133330504,3.28173,3047.2,3046.9,0.55]
[1732133330731,3.2816,3047.3,3046.8,0.55]
[1732133330732,0.03481239,3047.0,3046.8,0.55]
[1732133331032,3.2816,3047.3,3046.8,1.3910253]
[1732133331237,0.03485599,3047.2,3046.8,1.3910253]
[1732133331395,3.28178,3047.2,3046.8,0.55]
[1732133331590,0.03483419,3047.1,3046.8,0.55]
[1732133331790,0.03483419,3047.1,3046.7,0.55]
[1732133332012,3.28173,3047.2,3046.7,3.83222]
[1732133332237,0.03483419,3047.1,3046.7,0.55]
[1732133332424,0.03483419,3047.1,3046.8,3.28206]
[1732133332635,3.28159,3047.3,3046.9,0.55]
[1732133332830,0.03485599,3047.2,3046.9,0.55]
[1732133333139,3.28145,3047.5,3047.1,0.55]
[1732133333457,6.56292,3047.5,3047.0,0.55]
[1732133333659,3.28145,3047.5,3047.0,0.55]
[1732133334258,3.28122,3047.7,3047.3,0.55]
[1732133334437,3.28132,3047.6,3047.3,0.55]
[1732133334647,3.02064592,3048.2,3046.9,0.55]
[1732133334956,3.28175,3047.2,3046.7,0.55]
[1732133335109,3.28149,3047.4,3047.0,0.55]
[1732133335765,3.28166,3047.3,3046.7,3.83216]
[1732133336156,3.28173,3047.2,3046.7,3.83216]
[1732133336835,3.28186,3047.1,3046.7,0.55]
[1732133339148,6.56312,3047.4,3046.8,3.28207]
[1732133339338,3.28164,3047.3,3046.9,0.55]
[1732133339533,3.28179,3047.2,3046.9,0.55]
[1732133339771,3.28179,3047.2,3046.7,0.55]
[1732133340079,0.03483018,3047.1,3046.7,0.55]
[1732133340281,3.28203,3046.9,3046.4,0.55]
[1732133340439,0.03475501,3046.8,3046.5,3.28237]
[1732133340640,3.28183,3047.1,3046.6,3.83226]
[1732133340867,0.03477508,3047.0,3046.6,3.83226]
[1732133341071,3.31668508,3047.0,3046.6,3.83226]
[1732133341286,3.31668508,3047.0,3046.6,4.215486]
[1732133341587,0.01217508,3047.0,3046.6,4.215486]
[1732133341737,0.03399995,3047.0,3046.9,0.55]
[1732133341937,3.28142,3047.5,3046.9,0.55]
[1732133342134,3.28155,3047.4,3047.1,0.55]
[1732133342380,3.28215895,3047.4,3047.1,0.55]
[1732133342736,0.03410895,3047.4,3047.1,0.55]
[1732133342980,0.03410895,3047.4,3047.3,0.55]
[1732133343205,3.2812,3047.7,3047.3,0.55]
[1732133343368,0.03298782,3047.4,3047.3,3.83158]
[1732133343557,3.2811,3047.8,3047.3,3.83158]
[1732133343758,0.03298782,3047.4,3047.3,3.83158]
[1732133344100,0.03298782,3047.4,3047.3,3.83151]
[1732133344306,3.28131,3047.6,3047.3,0.55]
[1732133344462,0.03299822,3047.4,3047.1,0.55]
[1732133344665,3.28111,3047.8,3047.3,3.28149]
[1732133345007,0.03307401,3047.7,3047.4,3.83148]
[1732133345209,0.03307401,3047.7,3047.4,0.95739573]
[1732133345408,3.28057,3048.3,3047.9,0.55]
[1732133345698,0.03320836,3048.2,3047.9,0.55]
[1732133345913,3.31389836,3048.2,3047.8,0.55]
[1732133346058,0.03320836,3048.2,3048.0,0.55]
[1732133346254,3.28057,3048.3,3048.0,0.55]
[1732133346459,3.31387836,3048.2,3047.8,0.55]
[1732133347203,0.03320836,3048.2,3047.9,3.28093]
[1732133347385,0.03320836,3048.2,3048.0,0.55]
[1732133347708,0.03318658,3048.1,3047.8,0.55]
[1732133347888,3.28089,3048.0,3047.8,0.55]
[1732133348097,0.03317536,3047.9,3047.8,0.55]
[1732133348401,3.28062,3048.2,3047.8,0.55]
[1732133348557,0.03317536,3047.9,3047.8,3.83105]
[1732133348757,3.28047,3048.4,3047.8,3.83105]
[1732133349003,3.2803,3048.5,3048.0,3.8308]
[1732133349221,0.03327117,3048.3,3048.2,0.55]
[1732133349408,0.03329296,3048.4,3048.3,0.55]
[1732133349697,3.2804,3048.4,3048.3,0.55]
[1732133349996,0.03330449,3048.4,3048.3,0.55]
[1732133350200,0.03330449,3048.4,3048.0,3.83082]
[1732133350399,3.28027,3048.6,3048.0,3.83082]
[1732133350599,0.03328271,3048.3,3048.0,3.83082]
[1732133350802,3.28027,3048.6,3048.0,3.83082]
[1732133351125,3.28027,3048.6,3047.9,0.55]
[1732133351126,3.28079,3048.1,3047.9,0.55]
[1732133351407,3.31369822,3048.5,3047.9,0.55]
[1732133351613,0.03323929,3048.0,3047.9,3.83084]
[1732133351777,3.02064592,3049.2,3048.2,0.7612]
[1732133352103,3.27948,3049.3,3048.6,0.55]
[1732133352258,3.27948,3049.3,3048.7,3.28002]
[1732133352459,3.27948,3049.3,3048.8,0.55]
[1732133352656,3.27945,3049.3,3048.8,0.55]
[1732133352859,3.27945,3049.3,3048.7,3.28]
[1732133352860,3.27943,3049.4,3048.6,0.55]
[1732133353161,3.27945,3049.3,3049.0,0.55]
[1732133353914,3.62350113,3049.7,3049.0,0.55]
[1732133354057,3.62350113,3049.7,3048.9,0.7612]
[1732133354058,6.90259113,3049.7,3049.2,0.55]
[1732133354357,3.62350113,3049.7,3049.2,0.55]
[1732133354567,0.36235011,3049.6,3049.2,0.55]
[1732133355210,0.03360637,3049.5,3049.2,0.55]
[1732133355712,0.03360637,3049.5,3049.4,4.59483]
[1732133356181,3.27844,3050.3,3049.7,3.27893]
[1732133356505,0.03269752,3050.2,3049.8,0.55]
[1732133356820,3.27827,3050.4,3049.9,3.27879]
[1732133357114,3.27806,3050.6,3050.0,4.62407]
[1732133357446,0.03271928,3050.3,3050.1,0.55]
[1732133357603,3.27792,3050.8,3050.1,0.55]
[1732133357772,0.03269752,3050.2,3050.1,3.82851]
[1732133358119,3.27805,3050.6,3050.3,0.55]
[1732133358325,3.27825,3050.5,3050.3,0.55]
[1732133358819,3.27825,3050.4,3050.3,0.55]
[1732133359369,3.7019154,3050.4,3050.3,0.55]
[1732133359612,3.63928942,3051.1,3050.3,1.3204]
[1732133359821,3.63928942,3051.1,3050.6,0.55]
[1732133359822,3.606304,3051.1,3050.6,0.55]
[1732133360887,3.27733,3051.3,3050.7,3.27787]
[1732133361187,3.27712,3051.5,3050.9,3.8277]
[1732133361508,3.27666,3051.9,3051.2,0.55]
[1732133361708,3.27694,3051.7,3051.2,0.55]
[1732133362273,3.27709,3051.5,3050.9,0.55]
[1732133362474,3.27691,3051.7,3050.9,0.55]
[1732133362833,3.2773,3051.3,3050.9,0.55]
[1732133363329,3.27757,3051.1,3050.9,0.55]
[1732133363527,3.27732,3051.3,3050.9,0.55]
[1732133363673,3.27666,3051.9,3051.4,0.55]
[1732133364386,3.27656,3052.0,3051.4,3.82708]
[1732133364726,3.27635,3052.2,3051.6,0.55]
[1732133364926,3.27665,3051.9,3051.6,0.55]
[1732133365091,3.27665,3051.9,3051.5,0.55]
[1732133365679,3.27645,3052.1,3051.5,4.3694563]
[1732133366783,3.27645,3052.1,3051.5,1.0924663]
[1732133366977,3.0,3052.8,3051.4,0.55]
[1732133367337,3.27754,3051.1,3050.5,4.09708]
[1732133367476,3.27731,3051.3,3050.7,3.27791]
[1732133367675,3.27731,3051.3,3050.8,0.03277429]
[1732133368116,3.27767,3051.0,3050.6,0.78074909]
[1732133368325,3.27767,3051.0,3050.5,0.85177431]
[1732133369378,3.27767,3051.0,3050.6,0.55]
[1732133370290,3.27757,3051.1,3050.6,0.55]
[1732133370520,3.27734,3051.3,3050.6,3.82799]
[1732133370840,3.27717,3051.5,3051.0,0.55]
[1732133371335,3.27677,3051.8,3051.2,3.82732]
[1732133371493,3.27671,3051.9,3051.2,0.55]
[1732133371883,3.27671,3051.9,3051.3,3.27727]
[1732133372083,3.27696,3051.6,3051.5,0.55]
[1732133372291,3.27684,3051.8,3051.2,0.55]
[1732133372487,3.27729,3051.3,3051.2,0.55]
[1732133373855,3.27711,3051.5,3051.2,0.55]
[1732133374423,3.27729,3051.3,3051.2,0.55]
[1732133376668,3.27711,3051.5,3051.2,0.55]
[1732133376964,3.27709,3051.5,3051.4,0.55]
[1732133377257,3.27709,3051.5,3051.2,0.55]
[1732133377458,3.27729,3051.3,3051.2,0.55]
[1732133378032,3.27715,3051.5,3051.2,0.55]
[1732133378238,6.55433,3051.5,3051.2,0.55]
[1732133378472,3.27715,3051.5,3051.2,0.55]
[1732133378655,3.27729,3051.3,3051.2,0.55]
[1732133379160,3.27729,3051.3,3050.8,1.5347]
[1732133379359,3.27772,3050.9,3050.8,0.7759]
[1732133379732,3.27804,3050.6,3050.5,0.7759]
[1732133379938,3.27793,3050.7,3050.5,0.7759]
[1732133380678,3.27796,3050.7,3050.5,0.7759]
[1732133381234,3.27796,3050.7,3050.6,0.55]
[1732133383571,3.27796,3050.7,3050.3,0.55]
[1732133383787,3.27815,3050.5,3050.3,0.55]
[1732133384270,3.27815,3050.5,3050.4,0.2413]
[1732133384470,3.27796,3050.7,3050.4,0.2413]
[1732133384471,3.27796,3050.7,3050.5,0.55]
[1732133384772,3.27796,3050.7,3050.3,0.55]
[1732133384985,3.27796,3050.7,3050.5,0.55]
[1732133385277,3.27772,3050.9,3050.6,0.92642707]
[1732133385431,3.27762,3051.0,3050.7,0.55]
[1732133385629,3.27761,3051.0,3050.9,0.55]
[1732133385937,3.27742,3051.2,3050.9,0.55]
[1732133386174,3.27653,3052.0,3050.7,0.55]
[1732133386390,3.27664,3051.9,3050.9,0.55]
[1732133386582,3.2774,3051.2,3050.9,0.55]
[1732133386759,3.2774,3051.2,3050.7,0.55]
[1732133386933,3.2774,3051.2,3050.9,0.55]
[1732133387265,3.27726,3051.4,3051.1,0.55]
[1732133387469,0.38897292,3052.1,3050.9,0.55]
[1732133387653,3.27713,3051.5,3051.0,0.55]
[1732133387965,3.27719,3051.4,3051.2,0.55]
[1732133388330,3.27713,3051.5,3051.4,0.55]
[1732133388567,3.27713,3051.5,3050.8,0.55]
[1732133388568,3.27732,3051.3,3050.8,0.55]
[1732133388727,3.27732,3051.3,3050.8,1.015197]
[1732133388936,3.27732,3051.3,3051.0,0.55]
[1732133389249,3.27732,3051.3,3051.1,0.24174461]
[1732133389427,3.27732,3051.3,3050.9,0.55]
[1732133389625,3.27671,3051.9,3051.4,0.55]
[1732133389827,3.27671,3051.9,3051.6,0.55]
[1732133390129,3.27671,3051.9,3051.5,0.55]
[1732133390356,3.27671,3051.9,3051.7,0.55]
[1732133390562,6.55344,3051.9,3051.7,0.55]
[1732133390768,3.27671,3051.9,3051.4,0.55]
[1732133390934,3.27671,3051.9,3051.6,0.55]
[1732133391128,3.27687,3051.7,3051.6,0.55]
[1732133391334,3.27687,3051.7,3051.6,0.79160933]
[1732133391772,3.27687,3051.7,3051.6,0.55]
[1732133397227,3.27782,3050.8,3050.7,0.8039]
[1732133397430,6.98716094,3051.8,3050.7,0.24192699]
[1732133397579,6.98716094,3051.8,3050.4,0.8157]
[1732133397580,3.27788,3050.8,3050.4,0.8157]
[1732133397787,3.27781,3050.9,3050.5,0.34430345]
[1732133398095,3.27719,3051.4,3051.1,0.8157]
[1732133398304,3.27698,3051.6,3051.1,0.8157]
[1732133398693,3.27709,3051.5,3051.2,0.55]
[1732133398892,3.57657,3052.0,3051.2,0.55]
[1732133398893,3.27678,3051.8,3051.2,0.55]
[1732133399196,0.3,3052.0,3051.4,0.55]
[1732133399394,3.27692,3051.7,3051.4,0.55]
[1732133399652,3.27692,3051.7,3051.2,0.55]
[1732133399827,3.27692,3051.7,3051.3,0.24183915]
[1732133399828,3.27697,3051.6,3051.3,0.24183915]
[1732133400035,3.27697,3051.6,3051.4,0.55]
[1732133400346,3.27667,3051.9,3051.3,3.27722]
[1732133400497,3.2765,3052.1,3051.3,3.27722]
[1732133400498,3.2765,3052.1,3051.6,1.3344]
[1732133400702,3.27659,3052.0,3051.6,1.3344]
[1732133401113,3.27659,3052.0,3051.8,0.55]
[1732133401498,3.27675,3051.8,3051.7,0.55]
[1732133401789,3.27664,3051.9,3051.4,0.55]
[1732133401790,3.2769,3051.7,3051.4,0.55]
[1732133402033,3.27658,3052.0,3051.5,0.24173729]
[1732133402329,3.27658,3052.0,3051.6,0.55]
[1732133402637,3.27648,3052.1,3051.6,0.55]
[1732133402638,3.27648,3052.1,3051.7,0.55]
[1732133402801,3.2766,3052.0,3051.7,0.55]
[1732133403130,3.27687,3051.7,3051.4,0.55]
[1732133403304,3.2766,3052.0,3051.4,3.82716]
[1732133403513,3.0,3052.6,3051.4,0.55]
[1732133403812,3.27707,3051.5,3051.4,0.55]
[1732133404195,3.27728,3051.4,3051.1,0.55]
[1732133404385,3.27739,3051.2,3051.0,0.8107]
[1732133404589,3.2775,3051.1,3051.0,0.8107]
[1732133404790,3.27799,3050.7,3050.4,0.8001]
[1732133405003,3.27813,3050.6,3050.5,0.24214556]
[1732133405234,3.27782,3050.8,3050.4,0.8001]
[1732133405493,3.27759,3051.1,3050.5,3.27807]
[1732133405691,3.27757,3051.1,3050.5,3.27808]
[1732133405888,3.27735,3051.3,3050.6,0.03277546]
[1732133406129,3.27735,3051.3,3050.7,0.33109255]
[1732133406436,3.27693,3051.7,3051.1,3.27748]
[1732133406609,3.27694,3051.7,3051.1,3.27748]
[1732133406945,3.27653,3052.1,3051.6,0.7657]
[1732133407238,3.27662,3052.0,3051.7,0.55]
[1732133407596,3.27637,3052.2,3051.7,0.55]
[1732133407941,3.27615,3052.4,3051.9,0.55]
[1732133408097,3.27625,3052.3,3051.9,0.55]
[1732133408437,3.27595,3052.6,3051.9,0.55]
[1732133408653,3.27601,3052.5,3052.3,0.55]
[1732133408930,3.66767625,3053.1,3052.3,0.55]
[1732133408931,3.27589,3052.6,3052.3,0.55]
[1732133409313,6.55147,3052.8,3052.3,0.55]
[1732133409488,3.27571,3052.8,3052.3,0.55]
[1732133409693,3.27595,3052.6,3052.3,0.55]
[1732133409989,3.27571,3052.8,3052.3,0.55]
[1732133410439,3.64228763,3053.0,3052.3,0.55]
[1732133410598,3.27529,3053.2,3052.3,0.55]
[1732133410935,3.27574,3052.8,3052.5,0.55]
[1732133411106,3.27552,3053.0,3052.3,0.55]
[1732133411330,0.76434734,3053.8,3052.7,0.7977]
[1732133411331,3.27527,3053.2,3052.7,0.7977]
[1732133411492,0.34391391,3054.3,3052.7,0.7977]
[1732133411493,3.27394,3054.5,3053.0,1.3477]
[1732133411693,3.28342,3055.0,3053.6,0.55]
[1732133411694,3.27419,3054.2,3053.6,0.55]
[1732133411919,3.601609,3054.2,3053.6,3.82475]
[1732133412121,3.27419,3054.2,3053.6,3.82475]
[1732133412341,3.27396,3054.4,3053.7,3.2747]
[1732133412539,3.27409,3054.3,3053.8,0.55]
[1732133412734,3.27419,3054.2,3053.6,0.55]
[1732133412906,3.27429,3054.1,3053.6,0.55]
[1732133413112,3.274,3054.4,3053.6,0.55]
[1732133413325,3.27418,3054.2,3053.8,0.55]
[1732133413538,3.71041094,3055.1,3053.7,0.7977]
[1732133413539,3.27451,3053.9,3053.7,0.7977]
[1732133413710,3.66615625,3054.5,3053.2,3.27517]
[1732133413711,3.27501,3053.5,3053.2,0.55]
[1732133414440,3.27506,3053.4,3053.2,0.55]
[1732133414608,6.55002,3053.5,3053.2,0.55]
[1732133414792,3.27499,3053.5,3053.1,0.8102]
[1732133415237,3.27515,3053.3,3053.1,0.8102]
[1732133415396,3.27515,3053.3,3052.4,3.27604]
[1732133415397,3.27537,3053.1,3052.4,3.27604]
[1732133415612,3.27497,3053.5,3052.2,4.08644]
[1732133415810,3.27563,3052.9,3052.3,0.408644]
[1732133416334,6.55131,3052.9,3052.3,0.408644]
[1732133416643,3.27568,3052.8,3052.3,0.408644]
[1732133416836,3.27568,3052.8,3052.4,0.4495084]
[1732133417041,3.27568,3052.8,3052.5,0.55]
[1732133417838,3.2755,3053.0,3052.5,0.55]
[1732133418049,20.12202505,3062.4,3053.0,0.55]
[1732133418050,3.27478,3053.7,3053.0,0.55]
[1732133418195,3.27484,3053.6,3053.1,0.03275018]
[1732133418394,3.27484,3053.6,3053.0,3.85812018]
[1732133418614,3.27484,3053.6,3053.0,4.616981]
[1732133419206,3.27478,3053.7,3053.0,1.341611]
[1732133419429,3.27472,3053.7,3053.2,3.27518]
[1732133419601,3.27472,3053.7,3053.0,3.82539]
[1732133420298,3.27483,3053.6,3053.0,3.82539]
[1732133420498,3.27472,3053.7,3053.2,0.55]
[1732133420738,3.27494,3053.5,3053.2,0.55]
[1732133421140,6.54951,3053.7,3053.2,0.55]
[1732133421301,3.27472,3053.7,3053.0,3.82545]
[1732133421504,3.0,3054.6,3052.9,3.8151]
[1732133421505,3.17937383,3054.9,3053.4,0.806]
[1732133421705,3.17937383,3054.9,3053.5,0.55]
[1732133421706,3.27439,3054.0,3053.5,0.55]
[1732133422542,3.27457,3053.9,3053.5,0.55]
[1732133422845,3.27493,3053.5,3053.4,0.806]
[1732133423164,3.27525,3053.2,3052.9,0.7769]
[1732133423862,3.27508,3053.4,3052.9,0.7769]
[1732133424065,6.54929,3053.8,3053.1,3.27528]
[1732133424267,6.98408094,3054.7,3053.0,3.27546]
[1732133424504,3.27491,3053.6,3053.1,0.55]
[1732133424662,3.27491,3053.6,3053.3,0.55]
[1732133425403,3.27494,3053.5,3053.3,0.55]
[1732133425711,0.70935409,3054.5,3052.9,0.7769]
[1732133425712,3.27532,3053.2,3053.0,0.55]
[1732133426020,3.27508,3053.4,3053.0,0.55]
[1732133426722,3.27441,3054.0,3053.5,0.55]
[1732133426876,3.72041094,3055.1,3053.5,0.55]
[1732133426877,6.54825,3054.3,3053.7,0.55]
[1732133427069,3.27409,3054.3,3053.7,3.85744375]
[1732133427304,3.27398,3054.4,3053.9,0.55]
[1732133427508,3.27375,3054.6,3053.9,3.85716093]
[1732133427689,3.27315,3055.2,3054.1,1.3637]
[1732133427900,3.27382,3054.6,3054.1,1.3637]
[1732133428106,3.27382,3054.6,3054.1,4.63797]
[1732133428272,3.27355,3054.8,3054.2,3.27413]
[1732133428273,3.27366,3054.7,3054.2,3.27413]
[1732133428476,3.27366,3054.7,3054.3,0.55]
[1732133428477,3.27365,3054.7,3054.3,0.55]
[1732133428791,3.66533625,3055.3,3054.3,0.55]
[1732133429113,3.27348,3054.9,3054.3,0.55]
[1732133429813,0.327348,3054.9,3054.2,0.55]
[1732133430023,0.39230625,3054.9,3054.2,0.55]
[1732133430189,3.27393,3054.5,3054.2,0.55]
[1732133430918,3.27335,3055.0,3054.2,0.55]
[1732133431086,3.27394,3054.5,3054.2,0.55]
[1732133431618,0.327335,3055.0,3054.2,0.55]
[1732133431619,3.600745,3055.0,3054.4,0.55]
[1732133431788,3.27341,3055.0,3054.4,0.55]
[1732133431993,3.27358,3054.8,3054.4,0.55]
[1732133432303,3.2737,3054.7,3054.4,0.55]
[1732133432518,3.33538181,3054.7,3054.4,0.55]
[1732133433079,0.06168181,3054.7,3054.4,0.55]
[1732133433322,3.27382,3054.6,3054.4,1.009417]
[1732133433523,3.27385,3054.5,3054.4,0.55]
[1732133433908,3.33549121,3054.5,3054.4,0.55]
[1732133434878,3.33549121,3054.5,3053.4,0.01]
[1732133434879,3.27401,3054.4,3054.1,0.55]
[1732133435226,0.39230625,3055.1,3054.1,0.55]
[1732133435227,3.3357277,3054.3,3054.1,0.55]
[1732133435726,0.0615977,3054.3,3054.1,0.55]
[1732133436124,3.27409,3054.3,3054.1,0.55]
[1732133436286,0.06164597,3054.2,3054.1,0.55]
[1732133436621,0.06163267,3054.2,3054.1,0.55]
[1732133437004,3.27401,3054.4,3054.1,0.55]
[1732133437192,0.06163267,3054.2,3054.1,0.55]
[1732133437396,3.27368,3054.7,3054.2,3.27417]
[1732133437725,6.54658,3055.1,3054.5,3.82376]
[1732133437923,0.01,3056.1,3054.6,0.03273464]
[1732133437924,3.273,3055.3,3054.6,0.03273464]
[1732133438233,3.2727,3055.6,3054.9,0.55]
[1732133438415,3.2729,3055.4,3055.0,0.8027]
[1732133438587,3.2729,3055.4,3055.1,0.55]
[1732133438933,3.27307,3055.3,3055.1,0.55]
[1732133439096,6.54615,3055.3,3055.1,0.55]
[1732133439431,3.27307,3055.3,3055.1,0.55]
[1732133440433,3.2731,3055.2,3055.1,0.55]
[1732133440788,3.27307,3055.3,3054.6,0.8027]
[1732133440789,3.27358,3054.8,3054.6,0.8027]
[1732133441013,6.54677,3055.0,3054.7,0.55]
[1732133441347,3.27343,3054.9,3054.7,0.55]
[1732133441547,3.27353,3054.8,3054.7,0.55]
[1732133442051,3.27327,3055.1,3054.7,0.55]
[1732133442353,3.2733,3055.1,3054.7,0.55]
[1732133442855,3.27353,3054.8,3054.7,0.55]
[1732133443210,3.66514625,3055.5,3054.7,0.55]
[1732133443452,0.36651463,3055.4,3054.7,0.55]
[1732133443650,3.27339,3055.0,3054.7,0.55]
[1732133443808,3.27344,3054.9,3054.7,0.55]
[1732133444010,3.27339,3055.0,3054.7,0.55]
[1732133444920,3.27296,3055.4,3054.7,0.55]
[1732133445144,0.06183236,3054.9,3054.8,3.85620143]
[1732133445353,3.27273,3055.6,3055.2,0.55]
[1732133446355,3.27225,3056.0,3055.4,3.8228]
[1732133446860,0.39230625,3056.1,3055.4,0.55]
[1732133447010,3.27241,3055.9,3055.4,0.55]
[1732133447337,3.27247,3055.8,3055.4,0.55]
[1732133448575,3.27182,3056.4,3055.4,0.55]
[1732133448724,3.27301,3055.3,3055.0,0.7964]
[1732133448926,3.27289,3055.4,3055.0,0.7964]
[1732133450042,3.71041094,3055.9,3055.1,0.55]
[1732133450235,3.27339,3055.0,3054.7,0.778]
[1732133450435,3.27315,3055.2,3054.7,0.778]
[1732133450674,3.27323,3055.1,3054.7,0.778]
[1732133450830,3.27323,3055.1,3054.8,0.405174]
[1732133451367,3.27332,3055.0,3054.8,0.405174]
[1732133451671,3.27315,3055.2,3054.8,0.55]
[1732133451871,0.37104109,3055.8,3054.8,0.55]
[1732133452077,3.27278,3055.5,3054.8,0.55]
[1732133452277,3.27317,3055.2,3054.8,0.55]
[1732133452435,3.27317,3055.2,3054.8,1.010173]
[1732133452637,3.27312,3055.2,3054.8,1.010173]
[1732133452957,3.27289,3055.4,3055.0,0.55]
[1732133453330,6.54585,3055.4,3055.0,0.55]
[1732133453532,3.27254,3055.8,3055.3,3.27296]
[1732133453781,3.27254,3055.8,3055.4,0.55]
[1732133453933,3.27253,3055.8,3055.4,0.55]
[1732133454446,3.27258,3055.7,3055.4,0.55]
[1732133454659,3.2723,3056.0,3055.4,3.82289]
[1732133454859,3.2723,3056.0,3055.4,0.55]
[1732133455075,3.27235,3055.9,3055.4,0.55]
[1732133455276,3.27257,3055.7,3055.4,0.55]
[1732133455435,3.27274,3055.6,3055.2,0.55]
[1732133455771,3.27266,3055.7,3055.2,1.282433]
[1732133455986,3.27264,3055.7,3055.2,0.55]
[1732133456159,3.27264,3055.7,3055.2,5.131522]
[1732133456358,3.2724,3055.9,3055.4,0.55]
[1732133456730,3.27278,3055.5,3055.4,0.55]
[1732133456969,3.27243,3055.9,3055.3,0.55]
[1732133457168,3.27243,3055.9,3055.5,0.55]
[1732133457169,6.54486,3055.9,3055.5,0.55]
[1732133457371,3.2725,3055.8,3055.5,0.55]
[1732133457740,3.27263,3055.7,3055.5,0.55]
[1732133458088,3.27195,3056.3,3055.5,0.55]
[1732133458089,3.27236,3055.9,3055.5,0.55]
[1732133458246,3.27254,3055.8,3055.5,0.55]
[1732133458436,3.27221,3056.1,3055.7,0.55]
[1732133459446,6.54445,3056.1,3055.7,0.55]
[1732133459804,3.27184,3056.4,3055.7,3.82255]
[1732133460076,3.27228,3056.0,3055.7,0.55]
[1732133460260,3.27228,3056.0,3055.7,1.03068467]
[1732133460462,0.05605939,3055.9,3055.7,1.03068467]
[1732133460936,3.27241,3055.9,3055.7,0.55]
[1732133461157,0.05604401,3055.8,3055.7,0.55]
[1732133461356,3.27226,3056.0,3055.7,0.55]
[1732133461690,0.05606459,3055.9,3055.7,0.55]
[1732133462001,0.05606459,3055.9,3055.7,1.03068967]
[1732133462490,0.05606459,3055.9,3055.7,0.55]
[1732133462491,3.27246,3055.8,3055.7,0.55]
[1732133462697,0.05604401,3055.8,3055.7,0.55]
[1732133462994,3.32850401,3055.8,3055.7,0.55]
[1732133463986,3.32850401,3055.8,3055.4,1.308367]